bitfinex-derivatives/quotes_BTCF0:USTF0_20250602
["timestamp","ask_amount","ask_price","bid_price","bid_amount"]
[1748850157772,0.3002,105450.0,105440.0,3.62507117]
[1748850157984,0.3002,105450.0,105440.0,3.67346944]
[1748850161080,0.3002,105450.0,105440.0,3.8174215]
[1748850162284,0.3002,105450.0,105440.0,3.8174231]
[1748850163583,0.3002,105450.0,105440.0,3.76902323]
[1748850165686,0.20742975,105470.0,105460.0,0.189565]
[1748850165879,0.39102975,105470.0,105460.0,1.19137897]
[1748850166084,0.82922975,105470.0,105460.0,3.07257897]
[1748850166283,0.39122975,105470.0,105460.0,3.07257897]
[1748850166490,1.02192975,105470.0,105460.0,3.07257897]
[1748850166687,0.3765,105470.0,105460.0,3.07257897]
[1748850166883,0.8155,105470.0,105460.0,3.07257897]
[1748850167780,0.56,105470.0,105460.0,3.07731897]
[1748850167981,0.998,105470.0,105460.0,3.07731897]
[1748850168184,0.997,105470.0,105460.0,3.07731897]
[1748850168379,0.997,105470.0,105460.0,3.07931897]
[1748850168683,1.097,105470.0,105460.0,3.07931897]
[1748850169994,1.09696,105470.0,105460.0,3.07931897]
[1748850172794,0.659,105470.0,105460.0,3.07931897]
[1748850172985,1.09692,105470.0,105460.0,3.07931897]
[1748850174283,0.25781654,105480.0,105470.0,0.189547]
[1748850174483,0.39742975,105480.0,105470.0,1.27608912]
[1748850174686,0.002,105480.0,105470.0,2.06556068]
[1748850174893,0.0022,105480.0,105470.0,3.42160862]
[1748850175282,0.0022,105480.0,105470.0,3.2775643]
[1748850175483,0.14807764,105490.0,105480.0,0.189529]
[1748850175688,2.15419764,105500.0,105490.0,0.1895111]
[1748850175884,2.00612,105500.0,105490.0,1.15865684]
[1748850176191,2.00612,105500.0,105490.0,1.54745684]
[1748850176490,2.10612,105500.0,105490.0,1.54745684]
[1748850176886,2.11012,105500.0,105490.0,1.54745684]
[1748850177085,2.11032,105500.0,105490.0,1.54745684]
[1748850177298,2.11324,105500.0,105490.0,1.54745684]
[1748850177899,1.93184,105500.0,105490.0,1.54745684]
[1748850179294,1.73804,105500.0,105490.0,1.54745684]
[1748850180199,1.3002,105500.0,105490.0,1.55691455]
[1748850180405,1.73804,105500.0,105490.0,3.05691455]
[1748850181298,1.3002,105500.0,105490.0,3.05691455]
[1748850181601,1.112,105500.0,105490.0,3.05691455]
[1748850181792,0.14807764,105520.0,105510.0,0.1894751]
[1748850181987,0.89870739,105530.0,105520.0,0.1894571]
[1748850182194,1.30953764,105530.0,105520.0,0.98350284]
[1748850183094,1.30973764,105530.0,105520.0,0.98350284]
[1748850183305,1.31473764,105530.0,105520.0,2.1331569]
[1748850183496,1.55859744,105530.0,105520.0,1.9822971]
[1748850184301,1.6065834,105530.0,105520.0,1.9822971]
[1748850184598,1.6065834,105530.0,105520.0,1.97305168]
[1748850184796,1.45850576,105530.0,105520.0,1.97305168]
[1748850184998,1.45850576,105530.0,105520.0,0.47305168]
[1748850185196,1.4627153,105530.0,105520.0,0.47305168]
[1748850185402,1.4627153,105530.0,105520.0,1.97305168]
[1748850185601,1.0249953,105530.0,105520.0,1.97305168]
[1748850185801,1.4627153,105530.0,105520.0,1.97305168]
[1748850186304,1.3188555,105530.0,105520.0,1.97505168]
[1748850186601,1.3148555,105530.0,105520.0,1.97505168]
[1748850186801,0.8771355,105530.0,105520.0,1.97505168]
[1748850187000,1.3147755,105530.0,105520.0,1.97505168]
[1748850187802,1.4586353,105530.0,105520.0,1.97505168]
[1748850188705,1.6480745,105530.0,105520.0,1.97505168]
[1748850189100,1.6480745,105530.0,105520.0,1.80184]
[1748850189300,1.5042147,105530.0,105520.0,1.9912972]
[1748850190107,1.5042147,105530.0,105520.0,1.699]
[1748850190400,1.6480745,105530.0,105520.0,1.60484]
[1748850191193,1.6480745,105530.0,105520.0,0.10484]
[1748850192807,1.2104345,105530.0,105520.0,0.10484]
[1748850193006,1.6479945,105530.0,105520.0,0.10484]
[1748850194605,1.6479945,105530.0,105520.0,0.0955946]
[1748850196803,1.6479545,105530.0,105520.0,0.0955946]
[1748850197207,1.6479545,105530.0,105520.0,0.2758946]
[1748850197508,1.6479545,105530.0,105520.0,0.2806246]
[1748850198409,0.8771355,105530.0,105520.0,0.4700818]
[1748850198709,0.3356355,105530.0,105520.0,1.1562416]
[1748850198901,0.3358355,105530.0,105520.0,1.42172754]
[1748850199110,0.7733555,105530.0,105520.0,1.42172754]
[1748850201208,0.72532954,105530.0,105520.0,1.42172754]
[1748850201805,0.28784954,105530.0,105520.0,1.42172754]
[1748850202009,0.72532954,105530.0,105520.0,1.42172754]
[1748850202710,0.28784954,105530.0,105520.0,1.42172754]
[1748850202909,0.72528954,105530.0,105520.0,1.42172754]
[1748850204615,0.72528954,105530.0,105520.0,1.41248334]
[1748850205508,0.10544954,105530.0,105520.0,1.41248334]
[1748850205702,0.54288954,105530.0,105520.0,1.41248334]
[1748850206104,0.54268954,105530.0,105520.0,1.41248334]
[1748850206414,0.54288954,105530.0,105520.0,1.41248334]
[1748850206712,0.54288954,105530.0,105520.0,1.59668334]
[1748850208913,0.68674934,105530.0,105520.0,1.2036672]
[1748850209113,1.10038954,105530.0,105520.0,1.2036672]
[1748850211113,1.79440854,105530.0,105520.0,0.28771]
[1748850211317,1.79440854,105530.0,105520.0,0.10741]
[1748850211508,2.03725018,105530.0,105520.0,0.10741]
[1748850212802,1.59989018,105530.0,105520.0,0.10741]
[1748850213011,2.03725018,105530.0,105520.0,0.10741]
[1748850213417,2.03725018,105530.0,105520.0,0.00473]
[1748850214717,2.03725018,105530.0,105510.0,0.46853804]
[1748850214918,0.68393744,105520.0,105510.0,0.46853804]
[1748850216519,0.78393744,105520.0,105510.0,0.46953804]
[1748850216718,0.6358598,105520.0,105510.0,0.46953804]
[1748850216908,0.6358598,105520.0,105510.0,0.67056804]
[1748850217311,0.6358598,105520.0,105510.0,0.48309424]
[1748850217909,0.492,105520.0,105510.0,1.17722914]
[1748850218216,0.73056,105520.0,105510.0,1.17722914]
[1748850218414,0.2932,105520.0,105510.0,1.44271508]
[1748850218618,0.73056,105520.0,105510.0,1.44271508]
[1748850218918,0.73076,105520.0,105510.0,1.44271508]
[1748850219619,0.73076,105520.0,105510.0,2.94271508]
[1748850219823,0.73076,105520.0,105510.0,2.58191508]
[1748850220012,0.73076,105520.0,105510.0,2.94271508]
[1748850220211,0.73076,105520.0,105510.0,2.79885528]
[1748850220411,0.8746198,105520.0,105510.0,1.98309424]
[1748850220613,1.0553198,105520.0,105510.0,1.98309424]
[1748850220914,1.0553198,105520.0,105510.0,2.17256934]
[1748850221621,1.10046,105520.0,105510.0,2.35666934]
[1748850221819,1.2899172,105520.0,105510.0,0.66719424]
[1748850224009,1.10042,105520.0,105510.0,0.85666934]
[1748850224412,1.2898772,105520.0,105510.0,0.66719424]
[1748850227916,1.43795484,105520.0,105510.0,0.6579486]
[1748850228726,1.43795484,105520.0,105510.0,0.5552686]
[1748850228919,1.58181464,105520.0,105510.0,0.6579886]
[1748850231026,1.58606418,105520.0,105510.0,0.6579886]
[1748850232223,1.94686418,105520.0,105510.0,0.6579886]
[1748850232631,1.94686418,105520.0,105510.0,0.2775886]
[1748850232925,1.79878654,105520.0,105510.0,0.2775886]
[1748850233125,2.00621629,105520.0,105510.0,0.2775886]
[1748850234326,1.42503649,105520.0,105510.0,0.4760886]
[1748850234635,2.00613629,105520.0,105510.0,0.4760886]
[1748850234825,2.00613629,105520.0,105510.0,0.6715886]
[1748850235626,2.00613629,105520.0,105510.0,0.6561782]
[1748850236828,1.86227649,105520.0,105510.0,0.6561782]
[1748850237028,2.00613629,105520.0,105510.0,0.6561782]
[1748850238131,1.86227649,105520.0,105510.0,0.6561782]
[1748850241122,1.86227649,105520.0,105510.0,0.1594582]
[1748850241329,2.00613629,105520.0,105510.0,0.2620582]
[1748850241932,0.29744049,105540.0,105530.0,0.1894392]
[1748850242126,0.88261142,105540.0,105530.0,0.95034027]
[1748850242426,0.58717093,105540.0,105530.0,0.95034027]
[1748850242634,0.58717093,105540.0,105530.0,2.45034027]
[1748850242834,0.58737093,105540.0,105530.0,2.45034027]
[1748850243129,0.4394,105540.0,105530.0,2.45034027]
[1748850243921,0.4394,105540.0,105530.0,2.45507027]
[1748850244231,0.4424,105540.0,105530.0,2.45507027]
[1748850244536,0.59391,105540.0,105530.0,2.55767027]
[1748850245131,0.59387,105540.0,105530.0,2.94457027]
[1748850245833,0.15671,105540.0,105530.0,2.94457027]
[1748850246034,0.59387,105540.0,105530.0,2.76437574]
[1748850246238,0.59387,105540.0,105530.0,2.95381494]
[1748850246733,0.59387,105540.0,105530.0,2.59301494]
[1748850246934,0.59387,105540.0,105530.0,2.95381494]
[1748850247535,0.59387,105540.0,105530.0,2.688329]
[1748850247735,0.59387,105540.0,105530.0,2.80995514]
[1748850248038,0.98583,105540.0,105530.0,2.95381494]
[1748850249433,1.1752513,105540.0,105530.0,2.51791594]
[1748850249634,1.1752513,105540.0,105530.0,2.3962898]
[1748850250137,1.1752513,105540.0,105530.0,0.8962898]
[1748850250324,0.54871,105540.0,105530.0,1.35121494]
[1748850250530,0.59363,105540.0,105530.0,1.35121494]
[1748850250732,0.59383,105540.0,105530.0,2.85121494]
[1748850252033,0.59379,105540.0,105530.0,2.85121494]
[1748850252233,0.7832113,105540.0,105530.0,2.6112322]
[1748850252440,1.1553113,105540.0,105530.0,2.9445312]
[1748850252639,0.96589,105540.0,105530.0,1.4445312]
[1748850253439,1.1553113,105540.0,105530.0,1.4445312]
[1748850254039,0.7182313,105540.0,105530.0,1.4471012]
[1748850254238,1.1553113,105540.0,105530.0,1.4471012]
[1748850255332,1.1553113,105540.0,105530.0,1.257662]
[1748850257640,1.1553113,105540.0,105530.0,1.4471012]
[1748850259342,1.15956084,105540.0,105530.0,1.4471012]
[1748850259935,1.15956084,105540.0,105530.0,1.44699596]
[1748850260339,1.15956084,105540.0,105530.0,1.25755676]
[1748850260535,0.53305954,105540.0,105530.0,1.30313616]
[1748850260840,0.59795954,105540.0,105530.0,1.44699596]
[1748850261044,0.59775954,105540.0,105530.0,1.44699596]
[1748850261232,0.16095954,105540.0,105530.0,2.94699596]
[1748850261437,0.59795954,105540.0,105530.0,2.94699596]
[1748850262246,0.59795954,105540.0,105530.0,2.93775254]
[1748850263645,0.16095954,105540.0,105530.0,2.93775254]
[1748850263844,0.59795954,105540.0,105530.0,2.93775254]
[1748850265345,0.78738084,105540.0,105530.0,2.93775254]
[1748850265546,0.59795954,105540.0,105530.0,2.93775254]
[1748850265748,0.59791954,105540.0,105530.0,2.93775254]
[1748850266143,0.59771954,105540.0,105530.0,2.93775254]
[1748850266342,0.59791954,105540.0,105530.0,2.93775254]
[1748850271047,0.79661954,105540.0,105530.0,2.93775254]
[1748850272241,0.79661954,105540.0,105530.0,2.92850912]
[1748850273749,0.97781954,105540.0,105530.0,2.92850912]
[1748850276260,0.97781954,105540.0,105530.0,2.92838912]
[1748850277257,1.16741954,105540.0,105530.0,2.92838912]
[1748850279562,1.16741954,105540.0,105530.0,3.28918912]
[1748850281760,1.16741954,105540.0,105530.0,3.48458912]
[1748850282158,1.16741954,105540.0,105530.0,3.47534563]
[1748850283860,1.16741954,105540.0,105530.0,2.75374563]
[1748850284160,1.16741954,105540.0,105530.0,3.47534563]
[1748850290165,0.73045954,105540.0,105530.0,3.47534563]
[1748850290370,1.16721954,105540.0,105530.0,3.47534563]
[1748850291468,0.97761954,105540.0,105530.0,3.47534563]
[1748850293473,0.97761954,105540.0,105530.0,2.75374563]
[1748850293672,0.97761954,105540.0,105530.0,3.47534563]
[1748850294774,0.97761954,105540.0,105530.0,2.75374563]
[1748850294973,0.97761954,105540.0,105530.0,3.47534563]
[1748850296777,0.97761954,105540.0,105530.0,3.33148583]
[1748850296972,0.97761954,105540.0,105530.0,3.47534563]
[1748850297470,1.16704084,105540.0,105530.0,3.47534563]
[1748850297670,1.17291954,105540.0,105530.0,3.47534563]
[1748850298067,1.32101264,105540.0,105530.0,3.47534563]
[1748850299171,0.88425264,105540.0,105530.0,3.47534563]
[1748850299375,1.17287954,105540.0,105530.0,3.47534563]
[1748850302378,0.97757954,105540.0,105530.0,3.47534563]
[1748850302579,1.17427954,105540.0,105530.0,3.47534563]
[1748850305180,0.73755954,105540.0,105530.0,1.87277989]
[1748850305378,0.1894392,105530.0,105520.0,0.10250229]
[1748850305570,1.26197326,105530.0,105520.0,0.00014229]
[1748850305774,1.35673726,105530.0,105520.0,0.00014229]
[1748850306074,1.56352367,105530.0,105520.0,0.00014229]
[1748850306281,1.90543967,105530.0,105520.0,0.14387635]
[1748850306578,1.69614967,105530.0,105520.0,0.14387635]
[1748850306786,1.69714967,105530.0,105520.0,0.14387635]
[1748850307080,1.30736606,105530.0,105520.0,0.43569355]
[1748850307282,0.87068606,105530.0,105520.0,0.98911878]
[1748850307472,1.85756606,105530.0,105520.0,0.65590229]
[1748850307689,1.7096292,105530.0,105520.0,0.42836158]
[1748850307986,1.7096292,105530.0,105520.0,0.28460229]
[1748850308682,1.91641561,105530.0,105520.0,0.18224229]
[1748850308883,1.91641561,105530.0,105520.0,0.36364229]
[1748850309474,1.47973561,105530.0,105520.0,0.36364229]
[1748850309776,1.91641561,105530.0,105520.0,0.36364229]
[1748850310175,1.91641561,105530.0,105520.0,0.54334229]
[1748850315082,1.55561561,105530.0,105520.0,0.54334229]
[1748850315287,1.91641561,105530.0,105520.0,0.54334229]
[1748850316184,1.55561561,105530.0,105520.0,0.54334229]
[1748850316380,1.91641561,105530.0,105520.0,0.54334229]
[1748850316573,0.92949641,105530.0,105520.0,1.14204462]
[1748850316778,1.11775123,105530.0,105520.0,1.14204462]
[1748850317181,1.11755123,105530.0,105520.0,1.14204462]
[1748850317387,1.11775123,105530.0,105520.0,1.14204462]
[1748850317883,1.30719043,105530.0,105520.0,1.14204462]
[1748850318977,0.68103123,105530.0,105520.0,1.35908533]
[1748850319184,1.11775123,105530.0,105520.0,1.14204462]
[1748850320088,0.97003,105530.0,105520.0,1.14204462]
[1748850320290,1.12200077,105530.0,105520.0,1.14204462]
[1748850320987,0.97427954,105530.0,105520.0,1.14204462]
[1748850321383,0.53755954,105530.0,105520.0,1.14204462]
[1748850321583,0.97427954,105530.0,105520.0,1.14204462]
[1748850321984,1.12200077,105530.0,105520.0,1.14204462]
[1748850322189,0.68528077,105530.0,105520.0,1.14204462]
[1748850322389,1.12200077,105530.0,105520.0,1.14204462]
[1748850322792,0.74140077,105530.0,105520.0,1.14204462]
[1748850325694,0.30468077,105530.0,105520.0,1.14204462]
[1748850325897,0.30468077,105530.0,105520.0,1.50284462]
[1748850326090,0.74116077,105530.0,105520.0,1.50284462]
[1748850326296,0.74136077,105530.0,105520.0,1.50284462]
[1748850327382,0.30468077,105530.0,105520.0,1.50284462]
[1748850327590,0.59343954,105530.0,105520.0,1.50284462]
[1748850327801,0.15695954,105530.0,105520.0,1.50284462]
[1748850327993,0.57363954,105530.0,105520.0,3.00284462]
[1748850328191,0.13695954,105530.0,105520.0,3.00284462]
[1748850328395,0.57363954,105530.0,105520.0,3.00284462]
[1748850329587,0.57363954,105530.0,105520.0,2.85908533]
[1748850329795,0.57363954,105530.0,105520.0,3.00284462]
[1748850330200,0.75883954,105530.0,105520.0,3.00284462]
[1748850331992,0.75883954,105530.0,105520.0,3.10512462]
[1748850331993,0.13695954,105530.0,105520.0,3.10512462]
[1748850332199,0.57363954,105530.0,105520.0,3.10512462]
[1748850332497,0.57363954,105530.0,105520.0,3.10985462]
[1748850336304,0.13695954,105530.0,105520.0,3.10985462]
[1748850336600,0.57359954,105530.0,105520.0,3.10985462]
[1748850341993,0.75429954,105530.0,105520.0,3.10985462]
[1748850343507,0.75425954,105530.0,105520.0,3.10985462]
[1748850344107,0.95295954,105530.0,105520.0,3.10985462]
[1748850345004,0.31765954,105530.0,105520.0,3.10985462]
[1748850345210,0.75425954,105530.0,105520.0,3.10985462]
[1748850345910,0.13695954,105530.0,105520.0,3.10985462]
[1748850346109,0.57355954,105530.0,105520.0,3.10985462]
[1748850346908,0.13695954,105530.0,105520.0,3.10061134]
[1748850347110,0.57355954,105530.0,105520.0,3.10061134]
[1748850347410,0.13695954,105530.0,105520.0,3.10061134]
[1748850347610,0.57355954,105530.0,105520.0,3.10061134]
[1748850349411,0.75365954,105530.0,105520.0,3.10061134]
[1748850351409,0.31705954,105530.0,105520.0,3.10061134]
[1748850351606,0.75361954,105530.0,105520.0,3.10061134]
[1748850351802,0.13695954,105530.0,105520.0,3.10061134]
[1748850352216,0.13675954,105530.0,105520.0,3.10061134]
[1748850352400,0.13695954,105530.0,105520.0,3.10061134]
[1748850353210,0.13695954,105530.0,105520.0,3.24427841]
[1748850353717,0.81810229,105540.0,105530.0,0.1894391]
[1748850353912,0.81810229,105540.0,105530.0,1.53233822]
[1748850354216,0.81830229,105540.0,105530.0,1.34203822]
[1748850354515,0.81830229,105540.0,105530.0,2.84203822]
[1748850354715,0.82030229,105540.0,105530.0,2.84203822]
[1748850355114,0.82010229,105540.0,105530.0,2.84203822]
[1748850355317,0.82030229,105540.0,105530.0,2.84202017]
[1748850356017,0.82130229,105540.0,105530.0,2.84202017]
[1748850356713,0.82130229,105540.0,105530.0,2.84675017]
[1748850356913,0.82130229,105540.0,105530.0,2.83750735]
[1748850358117,0.38474229,105540.0,105530.0,2.83750735]
[1748850358320,0.82126229,105540.0,105530.0,2.83750735]
[1748850361219,0.82126229,105540.0,105530.0,2.93974735]
[1748850361423,1.00236229,105540.0,105530.0,2.93974735]
[1748850361718,1.15008352,105540.0,105530.0,2.93974735]
[1748850361915,1.00236229,105540.0,105530.0,2.93974735]
[1748850362419,1.15008352,105540.0,105530.0,2.93974735]
[1748850364520,1.15008352,105540.0,105530.0,3.13054735]
[1748850365123,1.15433306,105540.0,105530.0,3.13054735]
[1748850365423,0.97323306,105540.0,105530.0,3.13054735]
[1748850367425,0.97323306,105540.0,105530.0,2.98685222]
[1748850367818,0.97323306,105540.0,105530.0,3.13054735]
[1748850368818,0.97319306,105540.0,105530.0,3.13054735]
[1748850369019,0.53651306,105540.0,105530.0,3.13054735]
[1748850369218,0.97299306,105540.0,105530.0,3.13054735]
[1748850369622,0.44587183,105540.0,105530.0,2.55714735]
[1748850369826,0.44607183,105540.0,105530.0,2.55714735]
[1748850373736,0.59379306,105540.0,105530.0,2.55714735]
[1748850375829,0.15731306,105540.0,105530.0,2.55714735]
[1748850376033,0.00959183,105540.0,105530.0,2.55714735]
[1748850376532,0.44607183,105540.0,105530.0,2.55714735]
[1748850376742,0.44587183,105540.0,105530.0,2.55714735]
[1748850377039,0.44607183,105540.0,105530.0,2.55714735]
[1748850377426,0.59379306,105540.0,105530.0,2.55714735]
[1748850382140,0.59379306,105540.0,105530.0,2.41345222]
[1748850382439,0.15731306,105540.0,105530.0,2.45490735]
[1748850382628,0.15731306,105540.0,105530.0,2.55714735]
[1748850383037,0.15711306,105540.0,105530.0,2.55714735]
[1748850383340,0.15731306,105540.0,105530.0,2.55714735]
[1748850384239,0.00959183,105540.0,105530.0,2.55714735]
[1748850384641,0.00959183,105540.0,105530.0,2.41345222]
[1748850384941,0.00959183,105540.0,105530.0,2.55714735]
[1748850387837,0.00959183,105540.0,105530.0,0.54572628]
[1748850388043,0.15731306,105540.0,105530.0,0.79162141]
[1748850388633,0.15731306,105540.0,105530.0,0.00473]
[1748850388634,0.70350806,105540.0,105530.0,0.00473]
[1748850388938,0.1894391,105530.0,105520.0,0.1022]
[1748850389142,0.189457,105520.0,105510.0,0.50475924]
[1748850389447,0.8378909,105520.0,105510.0,0.24615924]
[1748850389635,0.69407395,105520.0,105510.0,0.43563414]
[1748850389834,0.84204604,105520.0,105510.0,0.43563414]
[1748850390336,0.84204604,105520.0,105510.0,0.43663414]
[1748850390535,0.65258904,105520.0,105510.0,0.43663414]
[1748850390841,0.65258904,105520.0,105510.0,0.44136414]
[1748850391037,0.84204604,105520.0,105510.0,0.44136414]
[1748850391247,0.69822909,105520.0,105510.0,0.44135376]
[1748850392038,0.550257,105520.0,105510.0,0.44135376]
[1748850392439,0.550257,105520.0,105510.0,0.44335376]
[1748850392748,0.550257,105520.0,105510.0,0.34115376]
[1748850392947,0.550257,105520.0,105510.0,0.44335376]
[1748850393247,0.3608,105520.0,105510.0,0.44335376]
[1748850394642,0.3608,105520.0,105510.0,0.34115376]
[1748850394844,0.3608,105520.0,105510.0,0.44335376]
[1748850395244,0.50877209,105530.0,105520.0,0.189457]
[1748850395546,1.13529119,105530.0,105520.0,0.189457]
[1748850395852,1.23005519,105530.0,105520.0,0.189457]
[1748850396151,1.27741539,105530.0,105510.0,0.89886996]
[1748850396347,1.18265139,105530.0,105510.0,0.94423836]
[1748850396651,0.00424954,105520.0,105510.0,0.89686996]
[1748850397046,0.00424954,105520.0,105510.0,0.89586996]
[1748850397243,0.00424954,105520.0,105510.0,2.39586996]
[1748850398143,0.00424954,105520.0,105510.0,2.39686996]
[1748850399855,0.00424954,105520.0,105510.0,2.39886996]
[1748850400045,0.00424954,105520.0,105510.0,2.05813259]
[1748850400353,0.19370654,105520.0,105510.0,0.66034719]
[1748850400653,0.19370654,105520.0,105510.0,1.97087229]
[1748850400950,0.19370654,105520.0,105510.0,0.47087229]
[1748850401140,0.19370654,105520.0,105510.0,0.66034729]
[1748850401542,0.19370654,105520.0,105510.0,0.47087229]
[1748850402552,0.76510654,105520.0,105510.0,0.47087229]
[1748850406652,0.76510654,105520.0,105510.0,0.36867229]
[1748850406850,0.76510654,105520.0,105510.0,0.47091229]
[1748850409862,0.76510654,105520.0,105510.0,0.11011229]
[1748850410251,0.76510654,105520.0,105510.0,0.29958719]
[1748850410452,0.76510654,105520.0,105510.0,0.44339376]
[1748850410653,0.76510654,105520.0,105510.0,0.25391886]
[1748850411060,0.76510654,105520.0,105510.0,0.15167886]
[1748850411263,0.76510654,105520.0,105510.0,0.11011229]
[1748850412362,1.12590654,105520.0,105510.0,0.11011229]
[1748850416359,1.27387863,105520.0,105510.0,0.11011229]
[1748850417361,1.4176852,105520.0,105510.0,0.00787229]
[1748850417763,1.27387863,105520.0,105510.0,0.00787229]
[1748850418567,1.12590654,105520.0,105510.0,0.00787229]
[1748850419065,1.27401098,105520.0,105510.0,0.00787229]
[1748850420860,1.12590654,105520.0,105510.0,0.00787229]
[1748850422466,1.26971311,105520.0,105510.0,0.00787229]
[1748850422657,1.12590654,105520.0,105510.0,0.00787229]
[1748850422857,1.36448511,105520.0,105510.0,0.00787229]
[1748850423062,1.57127152,105520.0,105510.0,0.00787229]
[1748850424868,1.36448511,105520.0,105510.0,0.00787229]
[1748850425469,1.57127152,105520.0,105510.0,0.00787229]
[1748850428672,1.36448511,105520.0,105510.0,0.00279618]
[1748850431471,1.57158979,105520.0,105510.0,0.00279618]
[1748850431865,1.36448511,105520.0,105510.0,0.00279618]
[1748850432461,1.65759854,105520.0,105510.0,0.00279618]
[1748850432765,1.80140511,105520.0,105510.0,0.00279618]
[1748850434376,2.00841136,105520.0,105510.0,0.00279618]
[1748850434778,1.80140511,105520.0,105510.0,0.00279618]
[1748850436078,0.1894928,105500.0,105490.0,0.46520551]
[1748850436270,0.91886795,105500.0,105490.0,1.29629145]
[1748850436773,1.47616795,105500.0,105490.0,1.29629145]
[1748850437167,1.47616795,105500.0,105490.0,1.30129145]
[1748850437373,1.47616795,105500.0,105490.0,0.93748551]
[1748850437571,1.47616795,105500.0,105490.0,0.57668551]
[1748850437981,1.47616795,105500.0,105490.0,0.27668551]
[1748850438177,1.33236138,105500.0,105490.0,0.27668551]
[1748850438580,1.33236138,105500.0,105490.0,0.28626699]
[1748850438976,1.33236138,105500.0,105490.0,0.27668551]
[1748850439484,1.47616795,105500.0,105490.0,0.27668551]
[1748850441267,1.48041749,105500.0,105490.0,0.27668551]
[1748850442680,1.84121749,105500.0,105490.0,0.009]
[1748850442884,1.84121749,105500.0,105490.0,0.01373]
[1748850443677,1.69336891,105500.0,105490.0,0.01373]
[1748850445377,1.78816091,105500.0,105490.0,0.01373]
[1748850445579,1.99514892,105500.0,105490.0,0.01373]
[1748850446587,1.90035692,105500.0,105490.0,0.01373]
[1748850447079,1.90035692,105500.0,105480.0,0.00014229]
[1748850447080,0.1895108,105490.0,105480.0,0.00014229]
[1748850447279,1.41307978,105490.0,105480.0,0.00014229]
[1748850448274,0.1895468,105470.0,105460.0,0.2891661]
[1748850448490,1.28022932,105470.0,105460.0,0.75155204]
[1748850448681,1.84402932,105470.0,105460.0,0.55415204]
[1748850448882,1.84402932,105470.0,105460.0,0.0020861]
[1748850449084,2.20482932,105470.0,105460.0,0.0020861]
[1748850449388,0.1895647,105460.0,105450.0,0.00014229]
[1748850449582,1.21693118,105460.0,105450.0,0.00014229]
[1748850449782,1.06927127,105460.0,105450.0,0.00014229]
[1748850450390,1.06927127,105460.0,105450.0,0.18364229]
[1748850450391,1.21683194,105460.0,105450.0,0.18364229]
[1748850450579,1.22083194,105460.0,105450.0,0.18364229]
[1748850451600,1.22083194,105460.0,105450.0,0.00014229]
[1748850451889,0.1896007,105440.0,105430.0,0.48856669]
[1748850452090,0.77164727,105440.0,105430.0,0.94455263]
[1748850452485,1.14644727,105440.0,105430.0,0.94455263]
[1748850452888,1.14644727,105440.0,105430.0,1.14363623]
[1748850452889,0.1811,105440.0,105430.0,1.14363623]
[1748850453190,0.4382,105440.0,105430.0,1.3378455]
[1748850453587,0.4384,105440.0,105430.0,1.3378455]
[1748850453793,0.6280007,105440.0,105430.0,1.3408455]
[1748850453989,0.4384,105440.0,105430.0,1.3408455]
[1748850454185,0.6280006,105440.0,105430.0,1.19703893]
[1748850455591,0.63225014,105440.0,105430.0,1.19703893]
[1748850456779,0.63225014,105440.0,105430.0,0.95055263]
[1748850456984,0.81235014,105440.0,105430.0,2.64017123]
[1748850457388,0.81275014,105440.0,105430.0,1.14017123]
[1748850457979,0.95655671,105440.0,105430.0,1.14017123]
[1748850458183,0.18454954,105440.0,105430.0,1.14017123]
[1748850458382,0.81271024,105440.0,105430.0,1.14017123]
[1748850459782,0.81271024,105440.0,105430.0,1.14954244]
[1748850460484,0.37415024,105440.0,105430.0,1.14954244]
[1748850460688,0.81267024,105440.0,105430.0,1.14954244]
[1748850462389,0.81267024,105440.0,105430.0,1.51034244]
[1748850462781,0.37415024,105440.0,105430.0,1.51034244]
[1748850463096,0.00424954,105440.0,105430.0,1.65414901]
[1748850463294,0.00014229,105450.0,105440.0,0.1896006]
[1748850463494,0.43966229,105450.0,105440.0,1.34709311]
[1748850463700,0.43966229,105450.0,105440.0,2.84709311]
[1748850463886,0.43986229,105450.0,105440.0,2.84709311]
[1748850464593,0.43986229,105450.0,105440.0,2.84809311]
[1748850465096,0.43986229,105450.0,105440.0,2.84909311]
[1748850466902,0.62944499,105450.0,105440.0,2.84909311]
[1748850467898,0.43986229,105450.0,105440.0,2.84909311]
[1748850471699,0.43994229,105450.0,105440.0,2.84909311]
[1748850477002,0.62864229,105450.0,105440.0,2.84909311]
[1748850479800,0.62864229,105450.0,105440.0,1.45253311]
[1748850481004,0.81454229,105450.0,105440.0,1.45253311]
[1748850481602,0.18904229,105450.0,105440.0,1.45253311]
[1748850481909,0.62812229,105450.0,105440.0,1.45253311]
[1748850482100,0.62792229,105450.0,105440.0,1.45253311]
[1748850482301,0.62812229,105450.0,105440.0,1.45253311]
[1748850483312,0.80922229,105450.0,105440.0,1.45253311]
[1748850484007,0.80922229,105450.0,105440.0,1.45353311]
[1748850484606,0.80922229,105450.0,105440.0,1.45453311]
[1748850484909,0.80922229,105450.0,105440.0,1.09373311]
[1748850485109,0.80922229,105450.0,105440.0,1.81533311]
[1748850485822,0.80922229,105450.0,105440.0,3.31533311]
[1748850487111,0.80906229,105450.0,105440.0,3.31533311]
[1748850487315,0.80906229,105450.0,105440.0,3.17152654]
[1748850487504,0.80906229,105450.0,105440.0,3.31533311]
[1748850489011,0.80906229,105450.0,105440.0,3.17152654]
[1748850489208,0.80906229,105450.0,105440.0,3.31533311]
[1748850491710,0.80906229,105450.0,105440.0,3.17152654]
[1748850492011,0.80906229,105450.0,105440.0,3.31533311]
[1748850492317,0.99864499,105450.0,105440.0,2.97912654]
[1748850492512,0.99864499,105450.0,105440.0,0.2970406]
[1748850492812,1.14620566,105450.0,105440.0,0.56252654]
[1748850493207,1.29001223,105450.0,105440.0,0.004]
[1748850493507,1.14245156,105450.0,105440.0,0.10744]
[1748850493707,1.34943957,105450.0,105440.0,0.10744]
[1748850493914,1.71023957,105450.0,105440.0,0.10744]
[1748850494206,1.71023957,105450.0,105440.0,0.10444]
[1748850494513,1.71023957,105450.0,105440.0,0.10544]
[1748850495416,1.71023957,105450.0,105440.0,0.002]
[1748850496400,1.85404614,105450.0,105440.0,0.002]
[1748850496602,1.50325156,105450.0,105440.0,0.002]
[1748850497011,1.75120631,105450.0,105440.0,0.002]
[1748850497316,1.80507557,105450.0,105440.0,0.002]
[1748850497507,1.71023957,105450.0,105440.0,0.002]
[1748850499709,1.50325156,105450.0,105440.0,0.002]
[1748850500216,1.5075011,105450.0,105440.0,0.002]
[1748850501509,1.65537508,105450.0,105440.0,0.002]
[1748850501919,1.5075011,105450.0,105440.0,0.002]
[1748850504219,1.71448911,105450.0,105440.0,0.002]
[1748850507519,1.71448911,105450.0,105430.0,0.10552669]
[1748850507520,0.1896006,105440.0,105430.0,0.10552669]
[1748850507707,1.03070093,105440.0,105430.0,0.10552669]
[1748850508606,1.03070093,105440.0,105430.0,0.10752669]
[1748850509217,1.03070093,105440.0,105430.0,0.10952669]